[Event "*** Titled Tuesday Blitz"]
[Site "Chess.com"]
[Date "2021.03.02"]
[Round "2"]
[White "atalz0"]
[Black "Fiona"]
[Result "1-0"]
[WhiteElo "2472"]
[BlackElo "2263"]
[TimeControl "180+1"]
[EndTime "10:14:13 PST"]
[Termination "atalz0 won by resignation"]

1. d4 {[%clk 0:03:00.9]} 1... d6 {[%clk 0:02:59.3]} 2. e4 {[%clk 0:03:00.1]}
2... Nf6 {[%clk 0:02:59]} 3. f3 {[%clk 0:03:00.1]} 3... Nbd7 {[%clk 0:02:59.5]}
4. c4 {[%clk 0:02:57.8]} 4... e5 {[%clk 0:02:59.2]} 5. d5 {[%clk 0:02:58]} 5...
g6 {[%clk 0:02:53.1]} 6. Be3 {[%clk 0:02:55.6]} 6... Bg7 {[%clk 0:02:52.1]} 7.
Nc3 {[%clk 0:02:54.4]} 7... O-O {[%clk 0:02:23.3]} 8. Qd2 {[%clk 0:02:53.9]}
8... Nb6 {[%clk 0:01:56]} 9. g4 {[%clk 0:02:47.4]} 9... Qe8 {[%clk 0:01:49.6]}
10. h4 {[%clk 0:02:46.4]} 10... Na4 {[%clk 0:01:42.1]} 11. Nge2 {[%clk
0:02:41.2]} 11... Bxg4 {[%clk 0:01:25.6]} 12. fxg4 {[%clk 0:02:38.2]} 12... Nxg4
{[%clk 0:01:26.5]} 13. O-O-O {[%clk 0:02:25.8]} 13... Nxe3 {[%clk 0:01:23.3]}
14. Qxe3 {[%clk 0:02:26.7]} 14... Bh6 {[%clk 0:01:23.1]} 15. Qxh6 {[%clk
0:02:25.7]} 1-0

[Event "*** Titled Tuesday Blitz"]
[Site "Chess.com"]
[Date "2021.03.02"]
[Round "2"]
[White "Mazetovic"]
[Black "sakkikuska"]
[Result "1-0"]
[WhiteElo "2715"]
[BlackElo "2497"]
[TimeControl "180+1"]
[EndTime "10:14:21 PST"]
[Termination "Mazetovic won by checkmate"]

1. e4 {[%clk 0:03:00.9]} 1... c5 {[%clk 0:02:59.7]} 2. Nf3 {[%clk 0:02:59.7]}
2... e6 {[%clk 0:03:00.2]} 3. d4 {[%clk 0:02:59.2]} 3... cxd4 {[%clk 0:03:01.1]}
4. Nxd4 {[%clk 0:02:59.4]} 4... Nc6 {[%clk 0:03:01.5]} 5. Nc3 {[%clk 0:02:58.9]}
5... Qc7 {[%clk 0:03:01.2]} 6. Be3 {[%clk 0:02:56.6]} 6... a6 {[%clk 0:03:00.6]}
7. f4 {[%clk 0:02:56.5]} 7... b5 {[%clk 0:02:56.4]} 8. Nxc6 {[%clk 0:02:56.1]}
8... dxc6 {[%clk 0:02:54.2]} 9. e5 {[%clk 0:02:52.5]} 9... Ne7 {[%clk
0:02:50.3]} 10. Bc5 {[%clk 0:02:36.2]} 10... Nf5 {[%clk 0:02:31.7]} 11. Bxf8
{[%clk 0:02:34.7]} 11... Rxf8 {[%clk 0:02:31]} 12. g4 {[%clk 0:02:21.1]} 12...
Ne3 {[%clk 0:02:24.7]} 13. Qd3 {[%clk 0:02:20.1]} 13... Nxf1 {[%clk 0:02:21.5]}
14. Ne4 {[%clk 0:02:19.3]} 14... Bb7 {[%clk 0:02:12.8]} 15. Nd6+ {[%clk
0:02:09.8]} 15... Ke7 {[%clk 0:02:12.6]} 16. Rxf1 {[%clk 0:02:09.9]} 16... Rad8
{[%clk 0:02:11.5]} 17. f5 {[%clk 0:02:08.8]} 17... Rxd6 {[%clk 0:01:39.1]} 18.
exd6+ {[%clk 0:02:05.8]} 18... Qxd6 {[%clk 0:01:38.8]} 19. Qxd6+ {[%clk
0:02:03.3]} 19... Kxd6 {[%clk 0:01:39.7]} 20. O-O-O+ {[%clk 0:02:03.7]} 20...
Ke7 {[%clk 0:01:31.8]} 21. fxe6 {[%clk 0:02:03.4]} 21... Kxe6 {[%clk 0:01:32]}
22. Rfe1+ {[%clk 0:02:01.4]} 22... Kf6 {[%clk 0:01:31.4]} 23. h4 {[%clk
0:02:01.2]} 23... h6 {[%clk 0:01:21.4]} 24. Rd6# {[%clk 0:01:59.5]} 1-0

[Event "*** Titled Tuesday Blitz"]
[Site "Chess.com"]
[Date "2021.03.02"]
[Round "2"]
[White "dropstoneDP"]
[Black "LogoCzar"]
[Result "1-0"]
[WhiteElo "2979"]
[BlackElo "2351"]
[TimeControl "180+1"]
[EndTime "10:14:33 PST"]
[Termination "dropstoneDP won by resignation"]

1. f4 {[%clk 0:03:00.9]} 1... d5 {[%clk 0:02:29.8]} 2. Nf3 {[%clk 0:03:00.8]}
2... g6 {[%clk 0:02:27.8]} 3. g3 {[%clk 0:03:01.4]} 3... Bg7 {[%clk 0:02:27.5]}
4. Bg2 {[%clk 0:03:02.1]} 4... Nf6 {[%clk 0:02:25.8]} 5. O-O {[%clk 0:03:02.5]}
5... O-O {[%clk 0:02:26.3]} 6. d3 {[%clk 0:03:03]} 6... b6 {[%clk 0:02:26]} 7.
e4 {[%clk 0:03:02.8]} 7... dxe4 {[%clk 0:02:24.5]} 8. dxe4 {[%clk 0:03:03.7]}
8... Bb7 {[%clk 0:02:24]} 9. e5 {[%clk 0:03:03.4]} 9... Nfd7 {[%clk 0:02:17.1]}
10. e6 {[%clk 0:03:03.6]} 10... fxe6 {[%clk 0:02:11.3]} 11. Ng5 {[%clk
0:03:03.7]} 11... Bxg2 {[%clk 0:01:56.2]} 12. Nxe6 {[%clk 0:03:02.6]} 12... Qc8
{[%clk 0:01:52.5]} 13. Kxg2 {[%clk 0:02:55.3]} 13... Rf6 {[%clk 0:01:45.3]} 14.
Nxg7 {[%clk 0:02:54.7]} 14... Kxg7 {[%clk 0:01:43.1]} 15. Qf3 {[%clk 0:02:54.8]}
15... Nc6 {[%clk 0:01:39.3]} 16. b3 {[%clk 0:02:54.9]} 16... Nde5 {[%clk
0:01:35.3]} 17. Qe4 {[%clk 0:02:53.6]} 17... Qg4 {[%clk 0:01:30.1]} 18. Bb2
{[%clk 0:02:49.8]} 18... Re6 {[%clk 0:01:01.8]} 19. h3 {[%clk 0:02:44.2]} 19...
Qh5 {[%clk 0:00:56.1]} 20. g4 {[%clk 0:02:38.5]} 20... Qh4 {[%clk 0:00:36.9]}
21. Nd2 {[%clk 0:02:38.4]} 21... Kg8 {[%clk 0:00:30.6]} 22. Nf3 {[%clk
0:02:37.1]} 22... Qf6 {[%clk 0:00:25.5]} 23. Bxe5 {[%clk 0:02:36.9]} 1-0

[Event "*** Titled Tuesday Blitz"]
[Site "Chess.com"]
[Date "2021.03.02"]
[Round "2"]
[White "frenchpin"]
[Black "13MiRacLe"]
[Result "0-1"]
[WhiteElo "2500"]
[BlackElo "2727"]
[TimeControl "180+1"]
[EndTime "10:14:36 PST"]
[Termination "13MiRacLe won by checkmate"]

1. e4 {[%clk 0:03:00.9]} 1... e5 {[%clk 0:02:59.7]} 2. Nf3 {[%clk 0:03:01.1]}
2... Nc6 {[%clk 0:02:59.9]} 3. Bc4 {[%clk 0:03:01.5]} 3... Nf6 {[%clk
0:02:59.8]} 4. Ng5 {[%clk 0:03:01.9]} 4... d5 {[%clk 0:02:59.5]} 5. exd5 {[%clk
0:03:02.8]} 5... Na5 {[%clk 0:02:59.9]} 6. Bb5+ {[%clk 0:03:03.5]} 6... c6
{[%clk 0:03:00.5]} 7. dxc6 {[%clk 0:03:04.4]} 7... bxc6 {[%clk 0:03:01.4]} 8.
Bd3 {[%clk 0:03:04.7]} 8... Nd5 {[%clk 0:03:01.5]} 9. Nf3 {[%clk 0:03:04]} 9...
Bd6 {[%clk 0:03:01.9]} 10. O-O {[%clk 0:03:04.4]} 10... O-O {[%clk 0:03:02.4]}
11. Re1 {[%clk 0:03:04.6]} 11... f5 {[%clk 0:03:03]} 12. Nxe5 {[%clk 0:03:00.6]}
12... Qc7 {[%clk 0:03:03.6]} 13. Nf3 {[%clk 0:02:51.8]} 13... g5 {[%clk
0:03:03.1]} 14. Nxg5 {[%clk 0:02:45.6]} 14... Qg7 {[%clk 0:03:00.3]} 15. Nf3
{[%clk 0:02:00.1]} 15... Nf4 {[%clk 0:02:58]} 16. g3 {[%clk 0:02:00]} 16... Nxd3
{[%clk 0:02:57.5]} 17. cxd3 {[%clk 0:02:00.9]} 17... f4 {[%clk 0:02:58.1]} 18.
Nc3 {[%clk 0:01:07.6]} 18... fxg3 {[%clk 0:02:55.3]} 19. Ne4 {[%clk 0:01:06]}
19... gxh2+ {[%clk 0:02:25.6]} 20. Kh1 {[%clk 0:01:04.8]} 20... Bg4 {[%clk
0:02:09.1]} 21. Re3 {[%clk 0:00:52.6]} 21... Rxf3 {[%clk 0:02:06.2]} 22. Rxf3
{[%clk 0:00:52.2]} 22... Bxf3+ {[%clk 0:02:06]} 23. Qxf3 {[%clk 0:00:52]} 23...
Qg1# {[%clk 0:02:06.6]} 0-1

[Event "*** Titled Tuesday Blitz"]
[Site "Chess.com"]
[Date "2021.03.02"]
[Round "2"]
[White "ellennilssen"]
[Black "ljuks68"]
[Result "1-0"]
[WhiteElo "2267"]
[BlackElo "2443"]
[TimeControl "180+1"]
[EndTime "10:14:36 PST"]
[Termination "ellennilssen won by resignation"]

1. c4 {[%clk 0:03:00.9]} 1... c6 {[%clk 0:02:54.9]} 2. g3 {[%clk 0:02:58.1]}
2... d5 {[%clk 0:02:49.6]} 3. Bg2 {[%clk 0:02:58.4]} 3... Nf6 {[%clk 0:02:47.8]}
4. Nf3 {[%clk 0:02:57]} 4... Bg4 {[%clk 0:02:44.5]} 5. O-O {[%clk 0:02:53.8]}
5... Nbd7 {[%clk 0:02:44.4]} 6. cxd5 {[%clk 0:02:50.9]} 6... cxd5 {[%clk
0:02:44]} 7. d3 {[%clk 0:02:51.6]} 7... e5 {[%clk 0:02:42.6]} 8. Nc3 {[%clk
0:02:47.7]} 8... Bd6 {[%clk 0:02:39.1]} 9. Qb3 {[%clk 0:02:45.7]} 9... Nc5
{[%clk 0:02:36.3]} 10. Qc2 {[%clk 0:02:35.3]} 10... Rc8 {[%clk 0:02:34.7]} 11.
Bg5 {[%clk 0:02:14]} 11... Ne6 {[%clk 0:02:27.5]} 12. Bxf6 {[%clk 0:02:04]}
12... Qxf6 {[%clk 0:02:13.5]} 13. Qa4+ {[%clk 0:02:03.2]} 13... Kf8 {[%clk
0:02:10.9]} 14. Nxd5 {[%clk 0:02:00.8]} 14... Qd8 {[%clk 0:02:09.8]} 15. Ne3
{[%clk 0:01:55.1]} 15... Bh5 {[%clk 0:02:04.7]} 16. Rac1 {[%clk 0:01:34.4]}
16... a6 {[%clk 0:02:02]} 17. Nf5 {[%clk 0:01:24.3]} 17... Bb8 {[%clk
0:01:51.7]} 18. Qb4+ {[%clk 0:01:14.7]} 18... Kg8 {[%clk 0:01:43.9]} 19. Rxc8
{[%clk 0:01:10.7]} 19... Qxc8 {[%clk 0:01:42.9]} 20. Ne7+ {[%clk 0:01:09.8]} 1-0

[Event "*** Titled Tuesday Blitz"]
[Site "Chess.com"]
[Date "2021.03.02"]
[Round "2"]
[White "Aslanov_Umid"]
[Black "FLamps8"]
[Result "0-1"]
[WhiteElo "2409"]
[BlackElo "2655"]
[TimeControl "180+1"]
[EndTime "10:14:48 PST"]
[Termination "FLamps8 won by resignation"]

1. e4 {[%clk 0:03:00.9]} 1... e5 {[%clk 0:02:59.3]} 2. Nf3 {[%clk 0:03:00.9]}
2... Nf6 {[%clk 0:02:59.8]} 3. d4 {[%clk 0:02:59.7]} 3... Nxe4 {[%clk
0:02:59.4]} 4. Nxe5 {[%clk 0:02:58.7]} 4... d6 {[%clk 0:02:53.5]} 5. Nf3 {[%clk
0:02:57.2]} 5... d5 {[%clk 0:02:49.8]} 6. Bd3 {[%clk 0:02:56.5]} 6... Bd6 {[%clk
0:02:50.4]} 7. O-O {[%clk 0:02:55.8]} 7... O-O {[%clk 0:02:50.6]} 8. c4 {[%clk
0:02:53.6]} 8... c6 {[%clk 0:02:51]} 9. Nc3 {[%clk 0:02:53.1]} 9... Nxc3 {[%clk
0:02:50.8]} 10. bxc3 {[%clk 0:02:54]} 10... Bg4 {[%clk 0:02:50.2]} 11. cxd5
{[%clk 0:02:43.7]} 11... cxd5 {[%clk 0:02:51.1]} 12. h3 {[%clk 0:02:38.5]} 12...
Bh5 {[%clk 0:02:50.5]} 13. Be2 {[%clk 0:02:18.4]} 13... Nd7 {[%clk 0:02:50]} 14.
Rb1 {[%clk 0:02:15.4]} 14... Nb6 {[%clk 0:02:49.4]} 15. Bg5 {[%clk 0:02:10.6]}
15... Qc7 {[%clk 0:02:47.3]} 16. Qd2 {[%clk 0:02:05.6]} 16... Rac8 {[%clk
0:02:44.8]} 17. Rfc1 {[%clk 0:02:04.8]} 17... h6 {[%clk 0:02:42.2]} 18. Be3
{[%clk 0:01:58.2]} 18... f5 {[%clk 0:02:31.3]} 19. Bxh6 {[%clk 0:01:44.4]} 19...
gxh6 {[%clk 0:02:13.1]} 20. Qxh6 {[%clk 0:01:45.3]} 20... Bxf3 {[%clk
0:02:13.4]} 21. Bxf3 {[%clk 0:01:44.8]} 21... Bf4 {[%clk 0:02:13.3]} 22. Qg6+
{[%clk 0:01:25.1]} 22... Qg7 {[%clk 0:02:12.6]} 23. Qxg7+ {[%clk 0:01:22]} 23...
Kxg7 {[%clk 0:02:13.5]} 24. Re1 {[%clk 0:01:22.3]} 24... Bd2 {[%clk 0:02:00.5]}
25. Re6 {[%clk 0:01:18.7]} 25... Bxc3 {[%clk 0:01:57.8]} 26. Rd1 {[%clk
0:01:16.3]} 26... Rce8 {[%clk 0:01:52.2]} 27. Rd6 {[%clk 0:01:12.5]} 27... Bb4
{[%clk 0:01:49.9]} 0-1

[Event "*** Titled Tuesday Blitz"]
[Site "Chess.com"]
[Date "2021.03.02"]
[Round "2"]
[White "Deepweb2020"]
[Black "XxPetroffsxX"]
[Result "1-0"]
[WhiteElo "2410"]
[BlackElo "2146"]
[TimeControl "180+1"]
[EndTime "10:15:02 PST"]
[Termination "Deepweb2020 won by resignation"]

1. d4 {[%clk 0:03:00.9]} 1... d5 {[%clk 0:02:59.2]} 2. c4 {[%clk 0:02:54]} 2...
e6 {[%clk 0:02:57.7]} 3. g3 {[%clk 0:02:53.8]} 3... Nf6 {[%clk 0:02:56.5]} 4.
Nf3 {[%clk 0:02:53.8]} 4... Be7 {[%clk 0:02:56.8]} 5. Bg2 {[%clk 0:02:54]} 5...
O-O {[%clk 0:02:56.2]} 6. O-O {[%clk 0:02:54.2]} 6... dxc4 {[%clk 0:02:56.7]} 7.
Qc2 {[%clk 0:02:52]} 7... a6 {[%clk 0:02:56.5]} 8. a4 {[%clk 0:02:51.8]} 8... c5
{[%clk 0:02:51.9]} 9. Qxc4 {[%clk 0:02:46.1]} 9... cxd4 {[%clk 0:02:51.3]} 10.
Rd1 {[%clk 0:02:44.5]} 10... Nc6 {[%clk 0:02:50.2]} 11. Nxd4 {[%clk 0:02:44.4]}
11... Nxd4 {[%clk 0:02:48.1]} 12. Rxd4 {[%clk 0:02:44]} 12... Qb6 {[%clk
0:02:40.4]} 13. a5 {[%clk 0:02:39.5]} 13... Qc5 {[%clk 0:02:35.5]} 14. Nc3
{[%clk 0:02:28.7]} 14... Bd7 {[%clk 0:02:21.6]} 15. Bxb7 {[%clk 0:02:24.4]}
15... Rab8 {[%clk 0:02:15.1]} 16. Bxa6 {[%clk 0:02:20.9]} 16... Qxc4 {[%clk
0:02:01.3]} 17. Bxc4 {[%clk 0:02:18.8]} 17... Bc6 {[%clk 0:01:59.8]} 18. a6
{[%clk 0:02:01.3]} 18... e5 {[%clk 0:01:59.1]} 19. Rd1 {[%clk 0:01:57.2]} 19...
Bc5 {[%clk 0:01:57.1]} 20. Nd5 {[%clk 0:01:43.4]} 20... Ne4 {[%clk 0:01:47.3]}
21. Be3 {[%clk 0:01:33.3]} 21... Bxe3 {[%clk 0:01:33.4]} 22. fxe3 {[%clk
0:01:32.7]} 22... Bxd5 {[%clk 0:01:21.5]} 23. Bxd5 {[%clk 0:01:31.6]} 1-0

[Event "*** Titled Tuesday Blitz"]
[Site "Chess.com"]
[Date "2021.03.02"]
[Round "2"]
[White "klimkoj"]
[Black "Firouzja2003"]
[Result "0-1"]
[WhiteElo "2600"]
[BlackElo "3149"]
[TimeControl "180+1"]
[EndTime "10:15:08 PST"]
[Termination "Firouzja2003 won by resignation"]

1. e4 {[%clk 0:03:00.9]} 1... d5 {[%clk 0:02:58.4]} 2. exd5 {[%clk 0:02:58.8]}
2... Qxd5 {[%clk 0:02:59.3]} 3. Nc3 {[%clk 0:02:50.4]} 3... Qa5 {[%clk 0:02:56]}
4. d4 {[%clk 0:02:48.8]} 4... Nf6 {[%clk 0:02:55.9]} 5. Nf3 {[%clk 0:02:48.6]}
5... Nc6 {[%clk 0:02:53.7]} 6. Be2 {[%clk 0:02:44.7]} 6... Bg4 {[%clk
0:02:53.4]} 7. O-O {[%clk 0:02:43.5]} 7... O-O-O {[%clk 0:02:53.4]} 8. Bd2
{[%clk 0:02:14.4]} 8... Qf5 {[%clk 0:02:45.8]} 9. Be3 {[%clk 0:01:59.7]} 9... e5
{[%clk 0:02:37.3]} 10. d5 {[%clk 0:02:00]} 10... Nb4 {[%clk 0:02:37.4]} 11. Nh4
{[%clk 0:01:27.6]} 11... Qh5 {[%clk 0:02:24]} 12. Bxg4+ {[%clk 0:01:22.3]} 12...
Qxg4 {[%clk 0:02:24.9]} 13. Nf3 {[%clk 0:01:11.5]} 13... Nbxd5 {[%clk
0:02:05.6]} 14. Nxe5 {[%clk 0:01:07.2]} 14... Qe6 {[%clk 0:02:05.7]} 15. Nxd5
{[%clk 0:00:59.6]} 15... Qxe5 {[%clk 0:01:54.9]} 16. c4 {[%clk 0:00:57]} 16...
Nxd5 {[%clk 0:01:54.9]} 17. cxd5 {[%clk 0:00:57.2]} 17... Rxd5 {[%clk
0:01:55.8]} 18. Qa4 {[%clk 0:00:53]} 18... Bd6 {[%clk 0:01:55.5]} 19. g3 {[%clk
0:00:51.2]} 19... a6 {[%clk 0:01:54.8]} 20. Bf4 {[%clk 0:00:46.4]} 20... Qd4
{[%clk 0:01:52.5]} 21. Qb3 {[%clk 0:00:41.9]} 21... Bxf4 {[%clk 0:01:50.4]} 22.
Rad1 {[%clk 0:00:40]} 22... Bd2 {[%clk 0:01:50.4]} 0-1

[Event "*** Titled Tuesday Blitz"]
[Site "Chess.com"]
[Date "2021.03.02"]
[Round "2"]
[White "Xeniya2005"]
[Black "WcmDominicToretto"]
[Result "1-0"]
[WhiteElo "2362"]
[BlackElo "1906"]
[TimeControl "180+1"]
[EndTime "10:15:08 PST"]
[Termination "Xeniya2005 won by resignation"]

1. e4 {[%clk 0:03:00.9]} 1... e5 {[%clk 0:02:58.6]} 2. Nf3 {[%clk 0:03:00.5]}
2... Nc6 {[%clk 0:02:57]} 3. Nc3 {[%clk 0:02:59.9]} 3... Nf6 {[%clk 0:02:46.3]}
4. Bb5 {[%clk 0:02:58.8]} 4... Bb4 {[%clk 0:02:40.2]} 5. d3 {[%clk 0:02:56.1]}
5... O-O {[%clk 0:02:38.3]} 6. O-O {[%clk 0:02:54.5]} 6... Bxc3 {[%clk
0:02:36.6]} 7. bxc3 {[%clk 0:02:53.6]} 7... d6 {[%clk 0:02:36.7]} 8. Bg5 {[%clk
0:02:52.8]} 8... h6 {[%clk 0:02:35.8]} 9. Bh4 {[%clk 0:02:51.8]} 9... a6 {[%clk
0:02:33.4]} 10. Ba4 {[%clk 0:02:47.7]} 10... b5 {[%clk 0:02:32.8]} 11. Bb3
{[%clk 0:02:47.3]} 11... a5 {[%clk 0:02:27.6]} 12. a4 {[%clk 0:02:46.3]} 12...
Na7 {[%clk 0:02:25.8]} 13. axb5 {[%clk 0:02:42.2]} 13... Nxb5 {[%clk 0:02:15]}
14. Qd2 {[%clk 0:02:41.6]} 14... Be6 {[%clk 0:02:10.4]} 15. Ba4 {[%clk
0:02:36.3]} 15... Na7 {[%clk 0:02:06.9]} 16. Rae1 {[%clk 0:02:23.3]} 16... Qe7
{[%clk 0:01:57.3]} 17. h3 {[%clk 0:02:21.3]} 17... Nc8 {[%clk 0:01:32.9]} 18.
Nh2 {[%clk 0:02:17.8]} 18... Nb6 {[%clk 0:01:32.3]} 19. Bc6 {[%clk 0:02:16.4]}
19... Ra6 {[%clk 0:01:31.3]} 20. Bb5 {[%clk 0:02:09.9]} 20... Ra7 {[%clk
0:01:29.4]} 21. f4 {[%clk 0:02:08.2]} 21... Bd7 {[%clk 0:01:27.3]} 22. Bxd7
{[%clk 0:02:01.8]} 22... Nbxd7 {[%clk 0:01:26.4]} 23. Ng4 {[%clk 0:01:58.3]}
23... exf4 {[%clk 0:01:19.8]} 24. Qxf4 {[%clk 0:01:46.8]} 24... g6 {[%clk
0:01:02.8]} 25. Nxf6+ {[%clk 0:01:37.4]} 25... Nxf6 {[%clk 0:01:01.8]} 26. Bxf6
{[%clk 0:01:37.8]} 26... Qe6 {[%clk 0:01:01.9]} 27. Qxh6 {[%clk 0:01:37.4]} 1-0

[Event "*** Titled Tuesday Blitz"]
[Site "Chess.com"]
[Date "2021.03.02"]
[Round "2"]
[White "Chopper1905"]
[Black "RamyresCoelho"]
[Result "1-0"]
[WhiteElo "2949"]
[BlackElo "2061"]
[TimeControl "180+1"]
[EndTime "10:15:13 PST"]
[Termination "Chopper1905 won by resignation"]

1. d4 {[%clk 0:03:00.9]} 1... Nf6 {[%clk 0:02:59.7]} 2. c4 {[%clk 0:02:59.9]}
2... g6 {[%clk 0:02:59.7]} 3. Nc3 {[%clk 0:02:54.8]} 3... d5 {[%clk 0:02:59.4]}
4. cxd5 {[%clk 0:02:49.5]} 4... Nxd5 {[%clk 0:02:59.2]} 5. Bd2 {[%clk
0:02:49.7]} 5... Bg7 {[%clk 0:02:57.2]} 6. e4 {[%clk 0:02:44]} 6... Nxc3 {[%clk
0:02:48]} 7. Bxc3 {[%clk 0:02:43.9]} 7... O-O {[%clk 0:02:46.2]} 8. Bc4 {[%clk
0:02:43.2]} 8... c5 {[%clk 0:02:42.7]} 9. d5 {[%clk 0:02:41.5]} 9... Bxc3+
{[%clk 0:02:43.6]} 10. bxc3 {[%clk 0:02:42.1]} 10... Qa5 {[%clk 0:02:39.7]} 11.
Ne2 {[%clk 0:02:41]} 11... Na6 {[%clk 0:02:21.5]} 12. h4 {[%clk 0:02:33.3]}
12... e6 {[%clk 0:02:12.5]} 13. h5 {[%clk 0:02:26.6]} 13... exd5 {[%clk
0:02:08.8]} 14. Bxd5 {[%clk 0:02:10.1]} 14... Be6 {[%clk 0:01:59.9]} 15. hxg6
{[%clk 0:02:02.2]} 15... hxg6 {[%clk 0:01:55.6]} 16. Qd2 {[%clk 0:01:59.7]}
16... Kg7 {[%clk 0:01:14.4]} 17. Qh6+ {[%clk 0:01:58.5]} 17... Kf6 {[%clk
0:01:14.5]} 18. Qh4+ {[%clk 0:01:58.9]} 18... Kg7 {[%clk 0:01:06.7]} 19. e5
{[%clk 0:01:57.1]} 1-0

[Event "*** Titled Tuesday Blitz"]
[Site "Chess.com"]
[Date "2021.03.02"]
[Round "2"]
[White "lagedema"]
[Black "FCChelsea14"]
[Result "1-0"]
[WhiteElo "2513"]
[BlackElo "2708"]
[TimeControl "180+1"]
[EndTime "10:15:14 PST"]
[Termination "lagedema won by resignation"]

1. e4 {[%clk 0:03:00.9]} 1... c6 {[%clk 0:02:57.1]} 2. c4 {[%clk 0:02:56.8]}
2... d5 {[%clk 0:02:56.8]} 3. exd5 {[%clk 0:02:57.1]} 3... cxd5 {[%clk
0:02:56.9]} 4. cxd5 {[%clk 0:02:57.4]} 4... Nf6 {[%clk 0:02:57.5]} 5. Nc3 {[%clk
0:02:56.5]} 5... Nxd5 {[%clk 0:02:56.9]} 6. Nf3 {[%clk 0:02:56.8]} 6... Nxc3
{[%clk 0:02:56.7]} 7. bxc3 {[%clk 0:02:54.8]} 7... g6 {[%clk 0:02:57]} 8. d4
{[%clk 0:02:52.2]} 8... Bg7 {[%clk 0:02:57.3]} 9. h3 {[%clk 0:02:49.3]} 9... O-O
{[%clk 0:02:57.1]} 10. Bd3 {[%clk 0:02:49]} 10... Nc6 {[%clk 0:02:55.3]} 11. O-O
{[%clk 0:02:49.4]} 11... e5 {[%clk 0:02:51.8]} 12. dxe5 {[%clk 0:02:49.1]} 12...
Nxe5 {[%clk 0:02:51.8]} 13. Nxe5 {[%clk 0:02:49.1]} 13... Bxe5 {[%clk 0:02:52]}
14. Bh6 {[%clk 0:02:49.4]} 14... Bg7 {[%clk 0:02:51.1]} 15. Bxg7 {[%clk
0:02:48.5]} 15... Kxg7 {[%clk 0:02:52]} 16. Be4 {[%clk 0:02:46.5]} 16... Rb8
{[%clk 0:02:49.2]} 17. Qa4 {[%clk 0:02:41.7]} 17... a6 {[%clk 0:02:30.9]} 18.
Rfd1 {[%clk 0:02:35.5]} 18... Qf6 {[%clk 0:02:30.8]} 19. Qb4 {[%clk 0:02:29.7]}
19... b6 {[%clk 0:02:28.1]} 20. Rd6 {[%clk 0:02:28.1]} 20... a5 {[%clk
0:02:25.6]} 21. Qd4 {[%clk 0:02:18.9]} 21... Qxd4 {[%clk 0:02:22.1]} 22. cxd4
{[%clk 0:02:19.8]} 22... b5 {[%clk 0:02:07.5]} 23. Rc1 {[%clk 0:02:11.1]} 23...
Re8 {[%clk 0:02:07.4]} 24. Bd3 {[%clk 0:02:06.4]} 24... Rb7 {[%clk 0:01:53.5]}
25. Rc5 {[%clk 0:01:58]} 25... Re1+ {[%clk 0:01:51.4]} 26. Kh2 {[%clk
0:01:57.6]} 26... Ra1 {[%clk 0:01:52]} 27. Rxc8 {[%clk 0:01:55.5]} 27... Rxa2
{[%clk 0:01:48.8]} 28. f3 {[%clk 0:01:49.7]} 28... b4 {[%clk 0:01:48.7]} 29. Be4
{[%clk 0:01:41]} 29... Rb5 {[%clk 0:01:38.7]} 30. Rc7 {[%clk 0:01:38.3]} 30...
b3 {[%clk 0:01:34.9]} 31. Rdd7 {[%clk 0:01:38.2]} 31... b2 {[%clk 0:01:16.2]}
32. Rxf7+ {[%clk 0:01:36]} 32... Kh6 {[%clk 0:01:16.6]} 33. h4 {[%clk 0:01:32]}
1-0

[Event "*** Titled Tuesday Blitz"]
[Site "Chess.com"]
[Date "2021.03.02"]
[Round "2"]
[White "ChessFighter1975"]
[Black "KaterynaLagno"]
[Result "1-0"]
[WhiteElo "2348"]
[BlackElo "2609"]
[TimeControl "180+1"]
[EndTime "10:15:15 PST"]
[Termination "ChessFighter1975 won by checkmate"]

1. d4 {[%clk 0:03:00.9]} 1... Nf6 {[%clk 0:02:59.5]} 2. c4 {[%clk 0:03:00.5]}
2... g6 {[%clk 0:03:00]} 3. Nc3 {[%clk 0:03:00]} 3... d5 {[%clk 0:03:00.3]} 4.
Nf3 {[%clk 0:02:59.7]} 4... Bg7 {[%clk 0:03:00]} 5. cxd5 {[%clk 0:03:00.3]} 5...
Nxd5 {[%clk 0:03:00.6]} 6. Qb3 {[%clk 0:03:00.4]} 6... Nb6 {[%clk 0:02:58.7]} 7.
Bg5 {[%clk 0:03:00]} 7... O-O {[%clk 0:02:54.2]} 8. Rd1 {[%clk 0:03:00.4]} 8...
a5 {[%clk 0:02:45.8]} 9. a3 {[%clk 0:02:58.5]} 9... a4 {[%clk 0:02:44]} 10. Qc2
{[%clk 0:02:58.9]} 10... Be6 {[%clk 0:02:32.4]} 11. d5 {[%clk 0:02:57.2]} 11...
Bg4 {[%clk 0:02:21.3]} 12. e4 {[%clk 0:02:56.9]} 12... Bxf3 {[%clk 0:02:18.2]}
13. gxf3 {[%clk 0:02:56.4]} 13... N8d7 {[%clk 0:02:17.8]} 14. f4 {[%clk
0:02:48.7]} 14... Nc5 {[%clk 0:01:48.1]} 15. Bh3 {[%clk 0:02:42.6]} 15... Nb3
{[%clk 0:01:36.3]} 16. O-O {[%clk 0:02:42.1]} 16... Ra5 {[%clk 0:01:19.3]} 17.
Bg2 {[%clk 0:02:18.2]} 17... Rc5 {[%clk 0:01:10.8]} 18. Qd3 {[%clk 0:02:17.4]}
18... c6 {[%clk 0:01:03.2]} 19. dxc6 {[%clk 0:02:10.4]} 19... Qxd3 {[%clk
0:01:02.1]} 20. Rxd3 {[%clk 0:02:11.3]} 20... Rxc6 {[%clk 0:01:02.6]} 21. Bxe7
{[%clk 0:02:11.2]} 21... Re8 {[%clk 0:01:03.1]} 22. Rd8 {[%clk 0:02:06.9]} 22...
Rxd8 {[%clk 0:01:01.9]} 23. Bxd8 {[%clk 0:02:07.8]} 23... Nc4 {[%clk 0:01:02.3]}
24. e5 {[%clk 0:02:05.9]} 24... Nxb2 {[%clk 0:01:00.6]} 25. Bxc6 {[%clk
0:02:04.5]} 25... bxc6 {[%clk 0:01:01.5]} 26. Ne4 {[%clk 0:02:02.6]} 26... Bf8
{[%clk 0:01:00.3]} 27. Nf6+ {[%clk 0:01:53.3]} 27... Kg7 {[%clk 0:00:57.6]} 28.
Ne8+ {[%clk 0:01:52.6]} 28... Kg8 {[%clk 0:00:57.9]} 29. Nf6+ {[%clk 0:01:51.8]}
29... Kg7 {[%clk 0:00:58.2]} 30. Ne8+ {[%clk 0:01:51.8]} 30... Kh6 {[%clk
0:00:58.6]} 31. Bg5+ {[%clk 0:01:50.7]} 31... Kh5 {[%clk 0:00:54.4]} 32. Nf6#
{[%clk 0:01:49.2]} 1-0